Cogmind - Beta 10.2 @@@ ROGUE MODE // 2021.09.07 @ 02:22:57 Player: Savant Result: Heading to fleet! Performance ------------- Evolutions (9) 4500 Regions Visited (27) 5400 Robots Destroyed (405) 2025 Value Destroyed (22067) 22067 Prototype IDs (58) 1160 Alien Tech Used (8) 1600 Bonus (19141) 19141 TOTAL SCORE: 55893 Bonus ------- High Alert Combat Kills 1632 Follower Combat Kills 4094 Entered Garrisons 1400 Used RIF Installer 3500 Found Hidden Lab 3000 Used Core Reset Matrix 3000 Win 3000 Friendly Fire -485 Cogmind --------- Core Integrity 1600/1600 Matter 193/300 Energy 252/280 System Corruption 0% Temperature Cool (3) Movement Flying (34) Location To Fleet Rendezvous Parts ------- > --- POWER (2) -------- Light Quantum Reactor Light Quantum Reactor > --- PROPULSION (6) --- Field Propulsion Array Field Propulsion Array Impulse Thruster Array > --- UTILITY (14) ----- Advanced Weight Redist. System Enhanced Optical Array Advanced Sensor Array Advanced Signal Interpreter Advanced Targeting Computer Advanced Melee Analysis Suite Advanced Target Analyzer Armor Integrity Analyzer Improved Maneuvering Thrusters Advanced Phase Shifter Improved Cloaking Device Centrium Light Armor Plating Centrium Light Armor Plating System Shield > --- WEAPON (3) ------- Nanosword Sigix Broadsword > --- INVENTORY (4) ---- Light Quantum Reactor Field Propulsion Array Ragnarok Missile Launcher Peak State ------------ > --- POWER ------------ Light Quantum Reactor Light Quantum Reactor > --- PROPULSION ------- Field Propulsion Array Field Propulsion Array Impulse Thruster Array > --- UTILITY ---------- Advanced Weight Redist. System Enhanced Optical Array Advanced Sensor Array Advanced Signal Interpreter Advanced Targeting Computer Advanced Melee Analysis Suite Advanced Target Analyzer Armor Integrity Analyzer Advanced Weapon Cycler Advanced Phase Shifter Improved Cloaking Device Centrium Light Armor Plating Centrium Light Armor Plating Advanced Hardlight Generator > --- WEAPON ----------- Nanosword Sigix Broadsword > --- INVENTORY -------- Light Quantum Reactor Improved Linear Gravjet Improved Linear Gravjet Ragnarok Missile Launcher [Rating: 181] Favorites ----------- Power Quantum Reactor Engine Light Deuterium Engine Power Core Reinforced Fission Core Reactor Quantum Reactor Propulsion Armored Huge Wheel Treads Light Treads Leg Flexi-carbon Leg Wheel Armored Huge Wheel Hover Unit Improved Linear Gravjet Flight Unit Field Propulsion Array Utility High-capacity Storage Unit Device Experimental Sensor Array Storage High-capacity Storage Unit Processor Advanced Signal Interpreter Hackware Relay Coupler [Grunt] Protection Reflective Plating Artifact Phase Armor Weapon EM Pulse Cannon Energy Gun Gamma Rifle Energy Cannon EM Pulse Cannon Ballistic Gun Improved Assault Rifle Ballistic Cannon Heavy Flak Cannon Launcher Advanced EMP Blaster Special Weapon Remote Datajack Slashing Weapon Axe Piercing Weapon Enhanced Force Lance Special Melee Weapon Improved Datajack Build | -11 -10 -10 -9 -9 -9 -8 -8 -8 -8 -7 -7 -6 -6 -6 -6 -6 -6 -5 -5 -4 -4 -3 -3 -3 -2 -2 -1 ------- Run | Scr Mat Min Mat Sto Gar Mat Gar Mat Gar Fac Gar Fac Ext Cet Arc Hub Gar Fac Gar Fac Gar Res Arm Lab Res Qua Acc Slots Evolved 18 | . . . 2 . . 2 . . . 2 . 2 . . . . . 2 . 2 . 2 . . 2 . 2 Power 1 | . . . . . . . . . . . . . . . . . . . . . . . . . 1 . . Propulsion 4 | . . . . . . 1 . . . . . . . . . . . 1 . . . . . . . . 2 Utility 12 | . . . 2 . . 1 . . . 2 . 2 . . . . . 1 . 2 . 2 . . . . . Weapon 1 | . . . . . . . . . . . . . . . . . . . . . . . . . 1 . . Parts Attached 971 | 6 2 15 13 20 17 41 21 54 28 19 15 62 12 13 . 45 11 49 32 54 35 93 122 15 134 19 24 Power 44 | 1 . 3 1 1 1 1 1 3 . . 1 1 2 3 . 2 . 1 . 1 2 1 3 2 10 2 1 Engine 13 | 1 . 3 1 1 1 . . 2 . . 1 . . . . . . . . . . . . . 3 . . Core 9 | . . . . . . 1 1 1 . . . 1 1 . . . . . . 1 2 1 . . . . . Reactor 22 | . . . . . . . . . . . . . 1 3 . 2 . 1 . . . . 3 2 7 2 1 Propulsion 93 | 2 . 7 1 4 1 10 2 8 5 1 . 4 1 . . 2 . 5 . 1 4 8 4 . 15 5 3 Treads 38 | . . 4 . 2 1 6 2 2 4 1 . 1 1 . . 1 . . . . 1 6 2 . 3 1 . Leg 17 | . . . . . . . . 4 1 . . 2 . . . . . . . . 2 . 1 . 7 . . Wheel 30 | 2 . 3 1 2 . 4 . 2 . . . 1 . . . 1 . 5 . 1 1 2 1 . 4 . . Hover 4 | . . . . . . . . . . . . . . . . . . . . . . . . . 1 1 2 Flight 4 | . . . . . . . . . . . . . . . . . . . . . . . . . . 3 1 Utility 421 | 1 2 2 8 6 3 10 7 15 9 10 6 32 2 4 . 20 9 22 15 29 11 42 67 7 53 9 20 Device 244 | . . . 6 2 1 3 2 6 3 6 1 12 1 1 . 10 3 13 6 17 1 27 61 2 41 5 14 Storage 32 | 1 1 . 1 . 1 1 1 2 2 1 . 3 . 1 . . . . . 1 1 4 1 4 6 . . Processor 11 | . 1 . . . . . . . . 1 . . . . . . . . . . . 1 1 . 1 2 4 Hackware 58 | . . . . . . 3 1 3 . 1 4 8 1 . . 3 3 3 5 7 4 7 3 1 . . 1 Protection 75 | . . 2 1 4 1 3 3 4 4 1 1 9 . 2 . 7 3 6 4 4 5 3 1 . 5 1 1 Artifact 1 | . . . . . . . . . . . . . . . . . . . . . . . . . . 1 . Weapon 413 | 2 . 3 3 9 12 20 11 28 14 8 8 25 7 6 . 21 2 21 17 23 18 42 48 6 56 3 . Energy Gun 67 | . . . 1 . 1 10 2 8 2 . . . . 1 . 3 . 1 2 5 2 4 13 . 11 1 . Energy Cannon 97 | . . . . 2 2 . 2 . 5 2 5 10 4 2 . 1 . 3 2 5 5 5 23 3 16 . . Ballistic Gun 64 | 2 . 2 2 5 4 . 3 6 1 1 . . . 2 . 8 . 1 . 4 4 7 3 1 8 . . Ballistic Cannon 2 | . . . . . . . . . . . . . 1 . . . . . . . . 1 . . . . . Launcher 32 | . . 1 . 2 4 . . . 3 1 . 3 . . . 4 . 1 1 . 3 3 . . 5 1 . Special Weapon 60 | . . . . . . . . . . 2 3 7 2 . . 3 1 7 7 5 2 9 8 1 3 . . Impact Weapon . | . . . . . . . . . . . . . . . . . . . . . . . . . . . . Slashing Weapon 70 | . . . . . 1 6 3 7 3 1 . 5 . 1 . 2 1 6 5 4 2 9 . . 13 1 . Piercing Weapon 4 | . . . . . . . . . . . . . . . . . . 2 . . . . 1 1 . . . Special Melee Weapon 17 | . . . . . . 4 1 7 . 1 . . . . . . . . . . . 4 . . . . . Unidentified Prototypes 16 | . . . 2 . . . . . . 1 . . . 3 . . . . . 1 . 3 . 4 1 1 . Parts Lost 147 | . . 2 . 3 4 3 9 7 5 . 1 5 1 1 . 4 . 1 1 4 9 12 9 . 66 . . Power 16 | . . 1 . . 1 . 1 1 . . 1 . 1 . . . . . . 1 . . . . 9 . . Propulsion 33 | . . 1 . 2 . 1 1 3 2 . . 3 . . . . . . . 1 1 2 2 . 14 . . Utility 55 | . . . . 1 2 1 1 1 1 . . 2 . . . 2 . 1 1 . 4 8 5 . 25 . . Weapon 43 | . . . . . 1 1 6 2 2 . . . . 1 . 2 . . . 2 4 2 2 . 18 . . Highest Loss Streak 19 | . . 2 . 2 3 1 8 4 3 . 1 2 1 1 . 3 . 1 1 1 7 5 3 . 19 . . Average Slot Usage (%) 92 | . 99 100 100 98 99 99 99 98 99 99 99 98 92 92 93 91 92 87 84 86 85 93 93 89 81 43 79 Engine 2 | . 14 14 11 10 11 4 . 2 9 7 6 . . . . . . . . . . . . . . . . Core 2 | . . . . . . 4 9 6 . . . 5 4 . . . . . . 2 5 4 . . . . . Reactor 1 | . . . . . . . . . . . . . 1 6 6 5 6 5 5 2 . . 3 2 6 3 7 Treads 7 | . . 12 11 11 11 12 17 6 12 15 15 9 6 6 6 5 6 . . . 3 10 4 9 4 . . Leg 1 | . . . . . . . . 7 1 . . 4 . . . . . . . . 1 . . . 2 . . Wheel 7 | . 28 15 11 10 11 13 9 11 12 7 7 3 6 6 6 6 6 10 11 9 5 2 7 4 2 . . Device 6 | . . . 17 4 7 2 4 5 9 14 . 5 . . . 9 3 9 5 7 . 6 10 12 13 12 18 Storage 17 | . 14 14 13 22 23 27 22 27 21 23 23 20 20 20 20 20 20 17 17 15 15 14 14 14 13 . . Processor 5 | . 13 3 . . . . . . . 6 7 6 6 6 6 6 6 5 5 5 5 8 9 9 9 13 23 Hackware 17 | . . . . . . 13 9 10 4 . 14 24 32 27 26 19 21 23 19 27 31 32 26 26 14 . 2 Protection 4 | . . 10 12 16 12 1 8 1 9 7 7 1 . 4 6 3 7 . 4 3 4 1 2 . 1 1 8 Energy Gun 2 | . . . 1 . 8 13 8 6 5 . . . . . 6 . . . 1 2 . . 4 . 2 2 . Energy Cannon 3 | . . . . . 1 . . . 8 3 10 4 6 8 . . . 3 4 3 4 3 2 6 1 . . Ballistic Gun 3 | . 28 27 20 21 10 . 4 4 1 . . . . 1 6 6 7 . . 1 2 1 . . . . . Special Weapon 1 | . . . . . . . . . . 1 2 3 2 . . 1 2 2 2 1 . . . . . . . Slashing Weapon 2 | . . . . . . 2 4 4 3 6 1 3 3 1 . 2 2 2 2 1 1 2 . . 3 4 8 Naked Turns . | . . . . . . . . . . . . . . . . . . . . . . . . . . . . Heaviest Build 182 | 13 41 45 66 73 80 81 82 80 84 87 88 108 106 121 118 126 119 126 136 145 136 142 143 145 182 46 63 Greatest Support 140 | 20 20 20 20 40 20 60 42 38 40 12 48 48 28 30 28 30 30 56 56 56 70 140 75 20 111 55 82 Greatest Overweight (x) 33 | . 2 4 6 7 7 8 8 7 6 7 7 7 3 4 4 4 4 3 2 2 4 6 7 7 33 . . Average Overweight (x) 3 | . 1 3 4 6 5 3 6 3 4 6 5 4 3 3 4 3 3 1 1 1 3 1 3 4 4 . . Largest Inventory Capacity 26 | 6 12 12 18 18 24 24 24 24 24 24 24 26 26 26 26 26 26 26 26 26 26 26 26 26 26 4 4 Average Capacity 22 | 5 10 12 13 18 18 24 20 24 20 24 24 24 26 26 26 26 26 26 26 26 26 26 26 18 22 4 4 Most Carried 26 | 4 10 12 18 18 22 24 24 24 24 24 24 26 26 26 26 26 26 26 26 26 26 26 26 26 26 4 4 Average Carried 21 | 2 7 11 13 17 17 23 19 23 19 23 23 23 25 25 26 23 25 25 25 25 24 24 25 18 18 3 3 Final Capacity 26 | 6 12 12 18 18 24 24 24 24 24 24 24 26 26 26 26 26 26 26 26 26 26 26 26 26 4 4 4 Final Carried 26 | 4 10 12 18 18 22 24 24 24 24 24 24 25 26 26 26 26 26 26 26 26 26 26 26 26 4 3 4 Class Distribution -------------------- 30% | Botlord-Mutant 20% | Bothacker-Mutant 17% | Mutant 9% | Hauler-Mutant 4% | Bothacker-Assassin 3% | Botlord-Assassin 3% | Botlord-Skirmisher Dominant Class ---------------- Mutant | -10/Materials Mutant | -10/Mines Mutant | -9/Materials Mutant | -9/Storage Mutant | -9/Garrison Bothacker-Mutant | -8/Materials Mutant | -8/Garrison Bothacker-Mutant | -8/Materials Mutant | -8/Garrison Bothacker-Assassin | -7/Factory Botlord-Mutant | -7/Garrison Botlord-Mutant | -6/Factory Bothacker-Mutant | -6/Extension Bothacker-Mutant | -6/Cetus Bothacker-Mutant | -6/Archives Bothacker-Assassin | -6/Hub_04(d) Bothacker-Mutant | -6/Garrison Botlord-Mutant | -5/Factory Botlord-Mutant | -5/Garrison Botlord-Mutant | -4/Factory Hauler-Mutant | -4/Garrison Botlord-Mutant | -3/Research Botlord-Mutant | -3/Armory Bothacker-Mutant | -3/Lab Hacker-Gladiator | -2/Research Mutant | -2/Quarantine Alien-Ninja | -1/Access Resources | -11 -10 -10 -9 -9 -9 -8 -8 -8 -8 -7 -7 -6 -6 -6 -6 -6 -6 -5 -5 -4 -4 -3 -3 -3 -2 -2 -1 ----------- Run | Scr Mat Min Mat Sto Gar Mat Gar Mat Gar Fac Gar Fac Ext Cet Arc Hub Gar Fac Gar Fac Gar Res Arm Lab Res Qua Acc Matter Collected 13812 | 227 95 388 348 639 212 546 244 641 305 142 296 814 131 207 56 584 349 397 640 708 590 1410 1688 . 1613 152 390 Remotely . | . . . . . . . . . . . . . . . . . . . . . . . . . . . . Salvage Created 22657 | . 102 348 398 1139 245 915 547 813 716 151 763 1333 152 367 357 865 655 324 518 787 672 1627 2892 . 5305 276 390 Parts 1008 | . 5 22 33 69 25 62 26 45 24 7 32 86 11 17 14 27 25 13 14 21 22 86 117 . 183 10 12 Haulers Intercepted 4 | . . . 2 1 . . . . . . . . . . . . . . . . . . . . 1 . . Recyclers Shooed 16 | . . . . 2 . . . 1 . . . . . . . 1 . . . 3 . 3 . . 5 . 1 Parts Field Recycled 2 | . . . . . . . . . . . . . . . . . . . . . . . . . . . 2 Retrieved Matter 8 | . . . . . . . . . . . . . . . . . . . . . . . . . . . 8 Parts Self-Destructed . | . . . . . . . . . . . . . . . . . . . . . . . . . . . . Prevented . | . . . . . . . . . . . . . . . . . . . . . . . . . . . . Kills | -11 -10 -10 -9 -9 -9 -8 -8 -8 -8 -7 -7 -6 -6 -6 -6 -6 -6 -5 -5 -4 -4 -3 -3 -3 -2 -2 -1 ------- Run | Scr Mat Min Mat Sto Gar Mat Gar Mat Gar Fac Gar Fac Ext Cet Arc Hub Gar Fac Gar Fac Gar Res Arm Lab Res Qua Acc Combat Hostiles Destroyed 321 | . 2 18 7 23 11 17 11 11 13 3 15 17 2 6 4 11 11 1 9 8 10 22 33 . 51 3 2 Melee 53 | . . . . . . 3 2 2 . 1 4 6 1 . . 1 1 1 3 1 . 6 1 . 18 . 2 Guns 124 | . 2 15 7 20 3 12 4 8 5 . . . . 1 4 4 10 . 2 5 3 4 7 . 8 . . Cannons 43 | . . . . . . . 3 . 1 1 6 5 1 4 . . . . . . . 7 6 . 9 . . AOE 63 | . . 3 . 3 8 2 2 1 5 1 2 6 . . . 5 . . 2 . 5 5 1 . 9 3 . Classes Destroyed 19 | . 2 3 2 2 1 1 . . 2 . . 1 1 . . 1 . 1 . . . . 1 . . 1 . Worker 25 | . 1 . 1 . . 1 . 1 . . . 3 . . . 1 . . . 2 . 3 . . 9 3 . Builder 18 | . . . 1 . . 2 . . . . . 7 . . . 1 . . . . . . . . 6 1 . Hauler 4 | . . . 2 1 . . . . . . . . . . . . . . . . . . . . 1 . . Recycler 24 | . . . . 2 . . . 2 . . . 2 . . . 1 . 2 . 2 . 2 . . 10 . 1 Operator 2 | . . . . . . . . . . . . . . . . . . 1 . . . 1 . . . . . Watcher 14 | . . . . 1 . 1 . 1 . . . 1 . . . . . . . . . 1 4 . 3 . 2 Swarmer 48 | . . 9 2 3 8 3 1 . . 1 . 4 . . . . . . 4 1 3 4 1 . 4 . . Grunt 127 | . 2 1 2 14 . 5 5 3 5 1 15 7 . 3 . 7 11 . 5 3 1 6 4 . 27 . . Brawler 11 | . . . . . . . . . 4 . . . . 1 . . . 1 1 1 . 1 2 . . . . Duelist 16 | . . . . . 2 . . . 1 1 . . . 1 . 1 . . . . 3 . 7 . . . . Protector 1 | . . . . . . . . . . . . . . . . 1 . . . . . . . . . . . Researcher 1 | . . . . . . . . . . . . . . . . . . . . . . . . . . 1 . Sentry 48 | . . 2 3 6 1 7 4 7 1 . . . 1 . 4 . . . . . 1 2 6 . 3 . . Demolisher 2 | . . . . . . . . . 1 . . . . . . . . . . . . . 1 . . . . Specialist 6 | . . . . . . . . . . . . . . . . . . . . . . . 3 . . 3 . Hunter 28 | . . . . . . 2 1 1 1 . . 5 . 1 . 2 . . . . 2 . 2 . 9 . 2 Programmer 28 | . . . . . . . . . . . . 1 . . . . . . . 3 . 9 7 . 8 . . Behemoth 2 | . . . . . . . . . . . . . 1 . . . . . . . 1 . . . . . . Assembled 6 | . . 6 . . . . . . . . . . . . . . . . . . . . . . . . . Best Kill Streak 16 | . 2 3 5 7 4 6 5 3 4 2 3 14 1 4 3 7 6 2 3 4 3 5 4 . 16 3 1 Combat Bots Only 10 | . 2 3 4 7 4 5 5 1 4 2 3 4 1 4 3 5 6 1 3 4 3 5 4 . 10 3 1 Max Kills in Single Turn 7 | . 1 2 1 3 2 2 2 1 2 1 2 7 1 1 1 3 1 1 2 1 2 3 1 . 6 2 1 Gunslinging 1 | . . . . 1 . 1 . . . . . . . . . . . . . . . . . . . . . Exploded 3 | . . 2 . 3 2 1 1 1 2 1 2 1 . . . 3 . . 1 . 2 3 1 . 2 2 . Melee 1 | . . . . . . 1 1 1 . 1 1 1 1 . . 1 1 1 1 1 . 1 1 . 1 . 1 Uniques/NPCs Destroyed . | . . . . . . . . . . . . . . . . . . . . . . . . . . . . Combat | -11 -10 -10 -9 -9 -9 -8 -8 -8 -8 -7 -7 -6 -6 -6 -6 -6 -6 -5 -5 -4 -4 -3 -3 -3 -2 -2 -1 -------- Run | Scr Mat Min Mat Sto Gar Mat Gar Mat Gar Fac Gar Fac Ext Cet Arc Hub Gar Fac Gar Fac Gar Res Arm Lab Res Qua Acc Damage Taken 32887 | . 34 621 426 847 738 462 1083 1079 919 84 494 1028 121 475 358 1312 460 284 778 1348 2049 3600 4011 . 9852 17 407 Core 4220 | . 12 89 59 70 148 71 149 185 98 22 92 153 14 20 . 156 37 52 105 103 180 317 445 . 1643 . . Absorbed by Shields 3760 | . . . . . . . 37 . . . 26 4 94 28 . . 16 . 17 . 44 348 402 . 2744 . . Reduced by Siege Mode 300 | . . . . . . . . . . . . . . . . . . . . . . 142 107 . 51 . . Core Remaining (%) 58 | 100 . 59 . . 30 . . . 8 . 83 . . . . . 55 . 84 . 75 . . 41 . 4 100 Volleys Fired 1045 | . 7 40 26 72 23 39 27 34 24 9 37 63 11 17 14 31 31 24 50 67 49 72 152 2 120 4 . Largest 3 | . 2 2 2 2 2 2 2 2 2 1 2 2 2 2 2 2 2 1 2 2 2 2 2 1 3 1 . Hottest 283 | . 40 40 81 66 68 95 116 100 113 63 132 153 138 138 100 150 70 98 141 141 191 156 195 120 283 70 . Shots Fired 1693 | . 14 78 51 135 37 67 52 68 44 9 52 72 13 32 28 49 56 24 59 95 84 119 240 2 209 4 . Gun 986 | . 14 76 51 124 26 67 38 68 23 . . . . 3 28 27 51 . 10 47 38 62 116 . 117 . . Cannon 426 | . . . . 9 . . 14 . 15 2 38 20 4 29 . 6 . 6 25 20 37 36 85 2 78 . . Launcher 70 | . . 2 . 2 11 . . . 6 3 . 9 . . . 9 . . 4 . 7 3 . . 10 4 . Special 211 | . . . . . . . . . . 4 14 43 9 . . 7 5 18 20 28 2 18 39 . 4 . . Kinetic 574 | . 14 76 47 124 14 . 18 47 . . . . . 3 14 21 51 . . 27 25 55 13 . 25 . . Thermal 173 | . . . 4 9 . . 20 1 . . . 10 . . . 6 . 1 . 3 1 16 29 2 71 . . Explosive 27 | . . 2 . 1 5 . . . . . . . . . . . . . . . 2 3 . . 10 4 . Electromagnetic 708 | . . . . 1 18 67 14 20 44 5 38 19 4 29 14 15 . 5 39 37 54 27 159 . 99 . . Robot Hit Streak 33 | . 5 7 6 13 11 15 18 19 10 13 17 24 18 5 7 21 14 6 11 15 12 22 30 . 33 6 . Robot Miss Streak 5 | . 3 4 4 4 5 4 1 4 2 . 1 2 1 3 1 2 3 2 3 3 4 4 4 . 4 . . Penetration Max 2 | . . . . . . . . . . . . . . . . . . . . 1 . 2 . . . . . Secondary Targets 21 | . . 4 1 6 1 1 . 3 . . . . . . . . 3 . . 1 . . . . 1 . . Max Gunslinging Chain 1 | . . 1 1 1 1 1 . 1 . . . . . . . . 1 . . 1 . . . . 1 . . Shots Hit Robots 1428 | . 8 43 35 89 27 72 53 70 34 11 45 69 14 21 22 44 36 21 46 80 58 119 183 . 203 12 13 Core Hits 641 | . 4 26 21 41 17 36 23 26 23 6 14 35 3 11 11 24 17 5 15 20 26 49 52 . 122 8 6 Critical Hits 62 | . . 2 . 1 . 1 1 . 1 . . 3 . . 1 2 6 . . 7 4 6 4 . 17 2 4 Critical Kills 22 | . . . . . . . . . 1 . . . . . 1 1 4 . . 2 2 2 1 . 5 2 1 Critical Parts Destroyed 33 | . . 2 . 1 . 1 . . . . . 3 . . . 1 2 . . 3 1 4 2 . 10 . 3 Melee Attacks 514 | . . . . . 1 18 19 39 6 13 15 45 2 4 . 11 6 18 14 18 6 59 3 4 125 25 63 Impact . | . . . . . . . . . . . . . . . . . . . . . . . . . . . . Slashing 463 | . . . . . 1 11 16 19 6 12 15 45 2 4 . 11 6 16 14 18 6 48 . . 125 25 63 Piercing 9 | . . . . . . . . . . . . . . . . . . 2 . . . . 3 4 . . . Sneak Attacks 88 | . . . . . . 5 1 10 . 2 8 13 2 . . . 1 3 6 2 . 20 1 . 7 6 1 Combat Hostiles 42 | . . . . . . 3 1 2 . 1 8 9 1 . . . 1 . 6 . . 9 1 . . . . Follow-up Attacks 15 | . . . . . . 1 1 1 . . . . . . . . . . . . . . . . 10 . 2 Damage Inflicted 52944 | . 91 684 558 1546 958 1682 1360 1388 976 345 1912 2899 290 630 573 1539 803 410 1582 2161 1774 5676 4716 . 15212 2025 1154 Guns 15349 | . 91 523 555 1343 340 930 451 898 400 . . . . 30 573 572 692 . 196 1107 499 1230 2570 . 2349 . . Cannons 8328 | . . . . . . . 211 . 215 44 745 314 71 600 . 124 . 69 223 230 418 738 1916 . 2410 . . Explosions 12011 | . . 161 . 179 618 330 255 90 319 217 144 1108 . . . 746 . . 179 97 857 1302 59 . 4729 621 . Melee 17173 | . . . . . . 422 407 400 42 84 1006 1477 219 . . 97 111 341 984 727 . 2403 171 . 5724 1404 1154 Ramming 83 | . . . 3 24 . . 36 . . . 17 . . . . . . . . . . 3 . . . . . Kinetic 7895 | . 91 523 505 1343 177 . 162 548 . . . . . 30 294 468 692 . . 783 371 1142 345 . 421 . . Thermal 5952 | . . . 50 31 100 330 595 108 . . 144 590 . . . 124 . . 60 97 304 811 429 . 2179 . . Explosive 6910 | . . 161 . 131 275 . . . . . . . . . . . . . . . 357 912 59 . 4394 621 . Electromagnetic 14931 | . . . . 17 406 930 160 332 934 261 745 832 71 600 279 850 . 69 538 554 742 405 3712 . 2494 . . Impact . | . . . . . . . . . . . . . . . . . . . . . . . . . . . . Slashing 16879 | . . . . . . 422 407 400 42 84 1006 1477 219 . . 97 111 218 984 727 . 2403 . . 5724 1404 1154 Piercing 294 | . . . . . . . . . . . . . . . . . . 123 . . . . 171 . . . . Highest Corruption 16 | . 1 1 4 4 4 . . . . . . . . . . 1 . 2 2 4 4 6 10 . 16 2 . Average Corruption 3 | . 1 1 3 4 4 . . . . . . . . . . 1 . 2 2 1 4 4 3 . 7 2 . Corruption Purged 26 | . . . . . . . . . . . . . . . . 1 . . . . . 8 12 . 5 . . Effects 265 | . 1 2 11 24 15 . . . . . . . . . . 1 . 4 17 10 24 51 31 . 70 4 . Message Errors 56 | . 1 1 4 3 5 . . . . . . . . . . 1 . 3 7 2 5 5 8 . 10 1 . Matter Fused 41 | . . . 1 4 5 . . . . . . . . . . . . . . 1 6 14 5 . 5 . . Heat Flow Errors 32 | . . . 2 4 2 . . . . . . . . . . . . . 2 1 2 10 2 . 6 1 . Energy Discharges 24 | . . . 1 3 1 . . . . . . . . . . . . 1 3 1 . 9 1 . 3 1 . Parts Rejected 5 | . . . . 3 . . . . . . . . . . . . . . . . 1 . . . 1 . . Data Loss (minor) 34 | . . 1 . 4 1 . . . . . . . . . . . . . 3 2 7 6 4 . 6 . . Data Loss (major) 4 | . . . . . . . . . . . . . . . . . . . . . . 3 1 . . . . Misfires 3 | . . . . . . . . . . . . . . . . . . . . . . . 1 . 2 . . Misdirections 5 | . . . . . . . . . . . . . . . . . . . . . . . 2 . 3 . . Targeting Errors 53 | . . . 3 3 . . . . . . . . . . . . . . 1 2 2 4 5 . 32 1 . Weapon Failures 8 | . . . . . 1 . . . . . . . . . . . . . 1 1 1 . 2 . 2 . . Overload Shots . | . . . . . . . . . . . . . . . . . . . . . . . . . . . . Overflow Damage 3433 | . . 25 . . 27 . 18 83 . 26 169 220 87 . . 2 56 . 225 196 1 450 . . 1289 305 254 Projectiles 180 | . . . . . . . 12 . . . 44 24 . . . 2 . . . . 1 3 . . 94 . . Explosions 652 | . . 25 . . 27 . 6 7 . 26 . 111 . . . . . . 5 13 . 95 . . 337 . . Melee 2601 | . . . . . . . . 76 . . 125 85 87 . . . 56 . 220 183 . 352 . . 858 305 254 Knockbacks 3 | . . . . 2 . . . . . . 1 . . . . . . . . . . . . . . . . Impact 3 | . . . . 2 . . . . . . 1 . . . . . . . . . . . . . . . . Kinetic . | . . . . . . . . . . . . . . . . . . . . . . . . . . . . Secondary . | . . . . . . . . . . . . . . . . . . . . . . . . . . . . Self-Inflicted Damage 1334 | . . . . 14 86 . 42 . . . . 90 . . . 103 . . 14 71 93 163 48 . 610 . . Shots 33 | . . . . 2 4 . 1 . . . . 4 . . . 4 . . 2 1 4 2 1 . 8 . . Rammed 13 | . . . 1 3 . . 5 . . . 3 . . . . . . . . . . 1 . . . . . Targets Rammed 13 | . . . 1 3 . . 5 . . . 3 . . . . . . . . . . 1 . . . . . Kicked . | . . . . . . . . . . . . . . . . . . . . . . . . . . . . Crushed . | . . . . . . . . . . . . . . . . . . . . . . . . . . . . Highest Temperature 417 | . . 32 232 190 85 217 296 81 39 8 305 168 96 275 123 336 114 40 312 283 324 238 284 56 417 191 6 Average Temperature 78 | . . 12 69 50 30 72 184 23 11 8 81 38 30 100 58 76 33 14 106 75 122 73 61 30 108 115 6 Received Heat Transfer 4827 | . 18 185 150 354 30 171 328 387 216 21 259 69 9 135 36 198 183 45 234 219 123 330 113 . 960 . 54 Effects 7 | . . . . . . 1 . . . . . . . . . 1 . . 1 . . . . . 4 . . Shutdowns 1 | . . . . . . . . . . . . . . . . . . . . . . . . . 1 . . Energy Bleed 1 | . . . . . . 1 . . . . . . . . . . . . . . . . . . . . . Interference 4 | . . . . . . . . . . . . . . . . 1 . . . . . . . . 3 . . Matter Decay 1 | . . . . . . . . . . . . . . . . . . . 1 . . . . . . . . Siege Activations 19 | . . . . . . . . . . . . . . . . . . . . . 2 6 9 . 2 . . Total Turns 312 | . . . . . . . . . . . . . . . . . . . . . 14 93 187 . 18 . . Longest Duration 63 | . . . . . . . . . . . . . . . . . . . . . 8 50 63 . 14 . . Robots Corrupted 40 | . . . . . . . . . 2 . 3 . . 1 . 1 . . 2 2 2 . 20 . 7 . . Combat Hostiles 38 | . . . . . . . . . 2 . 3 . . 1 . 1 . . 2 2 2 . 18 . 7 . . Parts Fried 105 | . . . . . 2 . . 3 4 3 4 2 . 4 . 11 . . 2 1 9 1 35 . 24 . . Impact Corruptions . | . . . . . . . . . . . . . . . . . . . . . . . . . . . . Robots Melted . | . . . . . . . . . . . . . . . . . . . . . . . . . . . . Combat Hostiles . | . . . . . . . . . . . . . . . . . . . . . . . . . . . . Parts Melted 7 | . . . 1 . . . . . . . . 4 . . . . . . . . . . 1 . 1 . . Heat Transferred 5694 | . . . 111 50 200 300 868 187 . . 100 611 . . . 148 . . 50 100 225 487 296 . 1961 . . Parts Sabotaged . | . . . . . . . . . . . . . . . . . . . . . . . . . . . . Parts Stolen . | . . . . . . . . . . . . . . . . . . . . . . . . . . . . Parts Stripped . | . . . . . . . . . . . . . . . . . . . . . . . . . . . . Power Chain Reactions 27 | . . . . 1 2 4 2 2 1 1 1 5 . . . 2 . . 1 2 2 1 . . . . . Missiles Intercepted . | . . . . . . . . . . . . . . . . . . . . . . . . . . . . Alert | -11 -10 -10 -9 -9 -9 -8 -8 -8 -8 -7 -7 -6 -6 -6 -6 -6 -6 -5 -5 -4 -4 -3 -3 -3 -2 -2 -1 ------- Run | Scr Mat Min Mat Sto Gar Mat Gar Mat Gar Fac Gar Fac Ext Cet Arc Hub Gar Fac Gar Fac Gar Res Arm Lab Res Qua Acc Peak Influence 1130 | . 81 371 198 560 796 542 634 519 658 441 726 407 702 602 306 342 429 277 469 269 432 648 561 . 1130 760 899 Initial 575 | . . 31 13 83 321 388 265 308 193 345 99 370 74 392 160 107 . 224 33 245 81 243 305 . . 575 456 Average 310 | . 29 150 111 252 666 388 447 382 422 281 438 203 237 494 269 200 208 130 302 118 269 345 306 . 412 585 631 Maximum Alert Level 4 | . . 1 . 2 3 2 2 2 2 2 3 2 3 2 1 1 2 1 2 1 2 2 2 . 4 3 3 Low Security (%) 33 | 100 100 80 100 39 . 1 . . 8 19 19 60 68 . 14 44 39 68 34 73 38 15 24 . 24 . . Level 1 36 | . . 19 . 45 5 48 50 66 38 68 27 37 4 11 85 55 51 31 18 26 33 52 55 . 37 . . Level 2 24 | . . . . 14 47 49 50 33 53 12 30 2 15 88 . . 8 . 46 . 27 32 20 . 20 77 63 Level 3 4 | . . . . . 47 . . . . . 23 . 10 . . . . . . . . . . . 16 22 36 Level 4 . | . . . . . . . . . . . . . . . . . . . . . . . . . . . . Level 5 . | . . . . . . . . . . . . . . . . . . . . . . . . . . . . High Security . | . . . . . . . . . . . . . . . . . . . . . . . . . . . . Max Security . | . . . . . . . . . . . . . . . . . . . . . . . . . . . . Squads Dispatched 57 | . 1 1 1 6 . 1 . 2 . . . 5 . . . 3 . 1 . 4 . 9 6 . 10 3 4 Investigation 12 | . 1 1 1 1 . . . 1 . . . 1 . . . . . . . . . 1 1 . 2 1 1 Extermination 14 | . . . . . . . . . . . . 1 . . . . . . . 1 . 3 3 . 5 1 . Reinforcement 22 | . . . . 2 . 1 . . . . . 3 . . . 2 . 1 . 3 . 3 2 . 3 1 1 Assault 5 | . . . . . . . . . . . . . . . . 1 . . . . . 2 . . . . 2 Garrison 4 | . . . . 3 . . . 1 . . . . . . . . . . . . . . . . . . . Intercept . | . . . . . . . . . . . . . . . . . . . . . . . . . . . . Construction Impeded 7 | . . . . . . 1 . . . . . 1 . . . . . . . 1 . 1 . . 2 1 . Haulers Reinforced 2 | . . . . . . . . . . . . 1 . . . . . . . . . . . . 1 . . Stealth | -11 -10 -10 -9 -9 -9 -8 -8 -8 -8 -7 -7 -6 -6 -6 -6 -6 -6 -5 -5 -4 -4 -3 -3 -3 -2 -2 -1 --------- Run | Scr Mat Min Mat Sto Gar Mat Gar Mat Gar Fac Gar Fac Ext Cet Arc Hub Gar Fac Gar Fac Gar Res Arm Lab Res Qua Acc Distress Signals 34 | . . . . 2 . 4 . 3 . . . 2 1 1 . . . . . . . 7 2 . 8 . 4 Communications Jammed 474 | . . . . . . . . . . . . 45 . . . 1 . 3 . 69 . 129 98 . 129 . . Distress Signals 473 | . . . . . . . . . . . . 45 . . . . . 3 . 69 . 129 98 . 129 . . Times Spotted 702 | . 4 22 17 30 14 45 20 27 19 9 22 49 22 13 4 17 15 14 24 34 22 67 70 . 95 3 24 Peak Tracking Total 17 | . 2 4 6 7 6 6 6 5 6 3 2 5 8 5 1 5 2 3 4 6 5 6 5 . 14 2 17 Tactical Retreats 40 | . . 4 . 1 4 3 . 2 7 1 2 1 . 1 . 1 . . 1 2 2 1 1 . 4 . 2 Traps | -11 -10 -10 -9 -9 -9 -8 -8 -8 -8 -7 -7 -6 -6 -6 -6 -6 -6 -5 -5 -4 -4 -3 -3 -3 -2 -2 -1 ------- Run | Scr Mat Min Mat Sto Gar Mat Gar Mat Gar Fac Gar Fac Ext Cet Arc Hub Gar Fac Gar Fac Gar Res Arm Lab Res Qua Acc Traps Triggered 90 | . 2 . 2 1 7 . 4 . 12 . 9 5 2 . . 9 6 4 11 1 8 1 4 . 1 . 1 Indirectly 8 | . . . . . . . . . . . . 1 . . . 6 . . 1 . . . . . . . . Trap Hack Attempts . | . . . . . . . . . . . . . . . . . . . . . . . . . . . . Triggered . | . . . . . . . . . . . . . . . . . . . . . . . . . . . . Disarmed . | . . . . . . . . . . . . . . . . . . . . . . . . . . . . Reprogrammed . | . . . . . . . . . . . . . . . . . . . . . . . . . . . . Reused . | . . . . . . . . . . . . . . . . . . . . . . . . . . . . Traps Extracted . | . . . . . . . . . . . . . . . . . . . . . . . . . . . . Installed . | . . . . . . . . . . . . . . . . . . . . . . . . . . . . Triggered 2 | . . . . . . . . . . . . 1 . . . . . . . . . 1 . . . . . Machines | -11 -10 -10 -9 -9 -9 -8 -8 -8 -8 -7 -7 -6 -6 -6 -6 -6 -6 -5 -5 -4 -4 -3 -3 -3 -2 -2 -1 ---------- Run | Scr Mat Min Mat Sto Gar Mat Gar Mat Gar Fac Gar Fac Ext Cet Arc Hub Gar Fac Gar Fac Gar Res Arm Lab Res Qua Acc Machines Disabled 71 | . . 1 . 1 1 3 2 2 2 1 5 6 5 4 . 3 3 5 3 3 3 1 7 1 5 4 . Max in Single Turn 4 | . . 1 . 1 1 1 1 1 1 1 1 4 . 2 . 2 1 1 1 . 1 1 1 1 1 1 . Garrison Access 7 | . . . . . . . . . . . . 2 . . . 1 . 1 . 1 . . . . . . 2 Garrison Relay 18 | . . . . . 1 . 2 . 2 . 4 . . . . . 3 . 3 . 3 . . . . . . Energy Cycler 1 | . . . . . . . . . . . . . 1 . . . . . . . . . . . . . . Machines Sabotaged . | . . . . . . . . . . . . . . . . . . . . . . . . . . . . Garrisons Compromised . | . . . . . . . . . . . . . . . . . . . . . . . . . . . . Overloaded Fab Kills . | . . . . . . . . . . . . . . . . . . . . . . . . . . . . Fab Network Shutdowns . | . . . . . . . . . . . . . . . . . . . . . . . . . . . . Hacking | -11 -10 -10 -9 -9 -9 -8 -8 -8 -8 -7 -7 -6 -6 -6 -6 -6 -6 -5 -5 -4 -4 -3 -3 -3 -2 -2 -1 --------- Run | Scr Mat Min Mat Sto Gar Mat Gar Mat Gar Fac Gar Fac Ext Cet Arc Hub Gar Fac Gar Fac Gar Res Arm Lab Res Qua Acc Machines Accessed 131 | . 4 2 5 8 . 12 . 11 . 7 . 14 10 1 . 5 . 9 . 7 . 9 12 2 5 4 4 Terminals 79 | . 4 1 3 5 . 7 . 8 . 4 . 8 10 1 . 4 . 3 . 2 . 5 8 . 1 3 2 Fabricators 10 | . . . . . . . . . . 2 . 2 . . . . . 2 . 1 . 1 2 . . . . Repair Stations 10 | . . . . 1 . 1 . . . . . 1 . . . . . 2 . 1 . 1 2 . 1 . . Recycling Units 5 | . . . 1 1 . 2 . . . . . . . . . . . . . . . . . . 1 . . Scanalyzers 10 | . . . 1 . . 1 . 2 . . . 1 . . . . . . . 1 . 2 . . 2 . . Garrison Access 14 | . . . . 1 . 1 . 1 . 1 . 2 . . . 1 . 2 . 2 . . . . . 1 2 Total Hacks 424 | . 17 2 15 18 . 58 . 41 . 27 . 42 22 1 . 13 . 17 . 26 . 28 33 20 24 14 6 Successful 241 | . 7 1 7 6 . 45 . 26 . 14 . 27 11 1 . 6 . 8 . 18 . 12 14 20 8 6 4 Failed 181 | . 9 1 8 12 . 12 . 15 . 13 . 15 11 . . 7 . 9 . 8 . 16 19 . 16 8 2 Catastrophic 22 | . . . . 2 . 1 . 1 . 2 . . . . . 2 . 4 . . . 1 4 . 2 3 . Database Lockouts 2 | . 1 . . . . 1 . . . . . . . . . . . . . . . . . . . . . Manual 157 | . 11 1 4 4 . 24 . 22 . 17 . 15 4 1 . 5 . 5 . 8 . 12 12 . 2 7 3 Terminals 248 | . 17 1 9 11 . 31 . 30 . 20 . 22 22 1 . 12 . 4 . 10 . 16 23 . 4 12 3 Fabricators 30 | . . . . . . . . . . 6 . 7 . . . . . 6 . 3 . 2 6 . . . . Repair Stations 30 | . . . . 2 . 2 . . . . . 6 . . . . . 4 . 4 . 2 4 . 6 . . Recycling Units 17 | . . . 4 4 . 7 . . . . . . . . . . . . . . . . . . 2 . . Scanalyzers 57 | . . . 2 . . 16 . 10 . . . 3 . . . . . . . 6 . 8 . . 12 . . Garrison Access 21 | . . . . 1 . 2 . 1 . 1 . 4 . . . 1 . 3 . 3 . . . . . 2 3 Terminal Hacks 87 | . 5 1 3 2 . 12 . 7 . 6 . 5 9 1 . 1 . . . 3 . 2 5 20 . 4 1 Record 22 | . . . . . . . . . . . . . . 1 . . . . . . . . 1 20 . . . Part Schematic 4 | . 1 . . . . . . . . 1 . 1 1 . . . . . . . . . . . . . . Robot Analysis 1 | . . . . . . 1 . . . . . . . . . . . . . . . . . . . . . Prototype ID Bank 12 | . 1 . 1 . . 4 . 2 . . . 1 1 . . . . . . 1 . 1 . . . . . Open Door 12 | . . 1 . 2 . . . . . . . 1 5 . . . . . . . . . 2 . . . 1 Level Access Points 1 | . . . . . . . . . . . . . . . . . . . . . . . . . . 1 . Branch Access Points 5 | . 1 . 1 . . . . . . . . 1 . . . . . . . 1 . 1 . . . . . Emergency Access Points 1 | . . . . . . 1 . . . . . . . . . . . . . . . . . . . . . Terminal Index 2 | . . . . . . . . 1 . 1 . . . . . . . . . . . . . . . . . Scanalyzer Index 1 | . . . . . . . . . . . . 1 . . . . . . . . . . . . . . . Alert Level 1 | . . . . . . . . . . . . . . . . . . . . . . . . . . 1 . Unreport Threat 6 | . . . . . . 3 . 2 . . . . . . . . . . . . . . 1 . . . . Locate Traps 8 | . . . 1 . . . . 1 . 2 . . 1 . . 1 . . . 1 . . . . . 1 . Dispatch Records 1 | . . . . . . . . . . . . . 1 . . . . . . . . . . . . . . Security Status 1 | . . . . . . . . 1 . . . . . . . . . . . . . . . . . . . Hauler Manifests 2 | . 1 . . . . 1 . . . . . . . . . . . . . . . . . . . . . Registered Prototypes 1 | . . . . . . 1 . . . . . . . . . . . . . . . . . . . . . Zone Layout 6 | . 1 . . . . 1 . . . 2 . . . . . . . . . . . . 1 . . 1 . Fabricator Hacks 11 | . . . . . . . . . . 2 . 2 . . . . . 3 . 2 . . 2 . . . . Load Schematic 6 | . . . . . . . . . . 1 . 1 . . . . . 2 . 1 . . 1 . . . . Build 5 | . . . . . . . . . . 1 . 1 . . . . . 1 . 1 . . 1 . . . . Repair Station Hacks 17 | . . . . . . 2 . . . . . 6 . . . . . 2 . 2 . . 2 . 3 . . Scan Component 10 | . . . . . . 1 . . . . . 3 . . . . . 2 . 1 . . 1 . 2 . . Repair 7 | . . . . . . 1 . . . . . 3 . . . . . . . 1 . . 1 . 1 . . Recycling Unit Hacks 4 | . . . 1 1 . 2 . . . . . . . . . . . . . . . . . . . . . Report Inventory 4 | . . . 1 1 . 2 . . . . . . . . . . . . . . . . . . . . . Scanalyzer 43 | . . . 1 . . 16 . 10 . . . 2 . . . . . . . 4 . 5 . . 5 . . Insert Component 27 | . . . 1 . . 8 . 4 . . . 2 . . . . . . . 2 . 5 . . 5 . . Analyze 16 | . . . . . . 8 . 6 . . . . . . . . . . . 2 . . . . . . . Garrison Access Hacks 17 | . . . . 1 . 2 . 1 . 1 . 4 . . . 1 . 3 . 3 . . . . . . 1 Unlock Access 7 | . . . . 1 . 1 . 1 . 1 . . . . . 1 . 1 . 1 . . . . . . . Seal Access 5 | . . . . . . . . . . . . 2 . . . . . 1 . 1 . . . . . . 1 Coupler Status 5 | . . . . . . 1 . . . . . 2 . . . . . 1 . 1 . . . . . . . Unauthorized Hacks 62 | . 2 . 2 2 . 11 . 8 . 5 . 8 2 . . 4 . . . 4 . 5 5 . . 2 2 Terminals 49 | . 2 . 2 . . 8 . 8 . 4 . 5 2 . . 4 . . . 4 . 5 2 . . 2 1 Track 14 | . 1 . . . . 4 . 3 . 1 . 1 . . . 1 . . . 1 . 1 . . . 1 . Assimilate 4 | . . . . . . . . . . . . 1 . . . 1 . . . 1 . 1 . . . . . Botnet 25 | . 1 . 2 . . 3 . 3 . 2 . 3 2 . . 2 . . . 1 . 2 2 . . 1 1 Disrupt 1 | . . . . . . . . 1 . . . . . . . . . . . . . . . . . . . Operators 5 | . . . . . . 1 . 1 . 1 . . . . . . . . . 1 . 1 . . . . . Fabricators 7 | . . . . . . . . . . 1 . 3 . . . . . . . . . . 3 . . . . Report 2 | . . . . . . . . . . 1 . . . . . . . . . . . . 1 . . . . Prioritize 2 | . . . . . . . . . . . . 1 . . . . . . . . . . 1 . . . . Siphon 2 | . . . . . . . . . . . . 1 . . . . . . . . . . 1 . . . . Download 1 | . . . . . . . . . . . . 1 . . . . . . . . . . . . . . . Repair Stations . | . . . . . . . . . . . . . . . . . . . . . . . . . . . . Recycling Units 5 | . . . . 2 . 3 . . . . . . . . . . . . . . . . . . . . . Reject 2 | . . . . 1 . 1 . . . . . . . . . . . . . . . . . . . . . Recyclers 1 | . . . . . . 1 . . . . . . . . . . . . . . . . . . . . . Mask 2 | . . . . 1 . 1 . . . . . . . . . . . . . . . . . . . . . Scanalyzers . | . . . . . . . . . . . . . . . . . . . . . . . . . . . . Garrison Access 1 | . . . . . . . . . . . . . . . . . . . . . . . . . . . 1 Jam 1 | . . . . . . . . . . . . . . . . . . . . . . . . . . . 1 Data Cores Recovered 2 | . . . . . . . . . . . . 1 . . . . . 1 . . . . . . . . . Used 2 | . . . . . . . . . . . . 1 . . . . . 1 . . . . . . . . . Hacking Detections 106 | . 4 1 5 5 . 10 . 9 . 6 . 10 7 1 . 4 . 8 . 6 . 9 10 . 5 4 2 Full Trace Events 8 | . 1 . 1 1 . . . . . . . . . . . . . . . . . 1 1 . 2 1 . Feedback Events 2 | . . . 1 . . . . . . . . . . . . . . . . . . . . . 1 . . Corruption 2 | . . . 1 . . . . . . . . . . . . . . . . . . . . . 1 . . Feedback Blocked . | . . . . . . . . . . . . . . . . . . . . . . . . . . . . Robot Schematics Acquired . | . . . . . . . . . . . . . . . . . . . . . . . . . . . . Robots Built . | . . . . . . . . . . . . . . . . . . . . . . . . . . . . Matter . | . . . . . . . . . . . . . . . . . . . . . . . . . . . . Time . | . . . . . . . . . . . . . . . . . . . . . . . . . . . . Total Robot Build Rating . | . . . . . . . . . . . . . . . . . . . . . . . . . . . . Part Schematics Acquired 18 | . 1 . . . . 7 . 4 . 1 . 2 1 . . . . . . 2 . . . . . . . Parts Built 8 | . . . . . . . . . . 1 . 2 . . . . . 2 . 1 . . 2 . . . . Matter 803 | . . . . . . . . . . 168 . 168 . . . . . 168 . 190 . . 109 . . . . Time 420 | . . . . . . . . . . 84 . 84 . . . . . 84 . 95 . . 73 . . . . Total Part Build Rating 31 | . . . . . . . . . . 4 . 8 . . . . . 8 . 5 . . 6 . . . . Parts Repaired 7 | . . . . . . 1 . . . . . 3 . . . . . . . 1 . . 1 . 1 . . Time 333 | . . . . . . 32 . . . . . 162 . . . . . . . 28 . . 49 . 62 . . Parts Recycled . | . . . . . . . . . . . . . . . . . . . . . . . . . . . . Recycled Matter . | . . . . . . . . . . . . . . . . . . . . . . . . . . . . Retrieved Matter . | . . . . . . . . . . . . . . . . . . . . . . . . . . . . Retrieved Components . | . . . . . . . . . . . . . . . . . . . . . . . . . . . . Parts Scanalyzed 15 | . . . . . . 7 . 4 . . . . . . . . . . . 2 . 2 . . . . . Part Schematics Acquired 13 | . . . . . . 7 . 4 . . . . . . . . . . . 2 . . . . . . . Parts Damaged . | . . . . . . . . . . . . . . . . . . . . . . . . . . . . Bothacking | -11 -10 -10 -9 -9 -9 -8 -8 -8 -8 -7 -7 -6 -6 -6 -6 -6 -6 -5 -5 -4 -4 -3 -3 -3 -2 -2 -1 ------------ Run | Scr Mat Min Mat Sto Gar Mat Gar Mat Gar Fac Gar Fac Ext Cet Arc Hub Gar Fac Gar Fac Gar Res Arm Lab Res Qua Acc Used RIF Installer 7 | . . . . . 1 . 1 . 1 . 1 . . . . . 1 . 1 . 1 . . . . . . Signal Jammer 1 | . . . . . . . . . 1 . . . . . . . . . . . . . . . . . . Zone Cloak 1 | . . . . . . . 1 . . . . . . . . . . . . . . . . . . . . Watcher Feeds 1 | . . . . . . . . . . . . . . . . . . . . . 1 . . . . . . Autooverride 1 | . . . . . . . . . . . . . . . . . . . 1 . . . . . . . . Autoassimilate 2 | . . . . . . . . . . . 1 . . . . . 1 . . . . . . . . . . Robots Hacked 167 | . . . . . . 6 2 8 . 4 10 23 4 . . 5 6 11 13 20 9 29 15 . 2 . . Non-combat 35 | . . . . . . 2 . 4 . 1 . 6 . . . 2 . 4 . 7 . 5 2 . 2 . . Combat 132 | . . . . . . 4 2 4 . 3 10 17 4 . . 3 6 7 13 13 9 24 13 . . . . Autooverrided 12 | . . . . . . . . . . . . . . . . . . . . 3 3 5 1 . . . . Autoassimilated 31 | . . . . . . . . . . . 3 . 2 . . 1 4 1 3 2 5 6 4 . . . . Robot Hacks Applied 150 | . . . . . . 6 2 11 . 4 7 32 2 . . 6 2 12 10 17 1 22 13 . 3 . . parse_system 3 | . . . . . . 1 . 1 . . . . . . . . . . . . . 1 . . . . . no_distress 2 | . . . . . . . . . . . . 2 . . . . . . . . . . . . . . . find_chute 1 | . . . . . . . . . . . . 1 . . . . . . . . . . . . . . . ignore_repairs 5 | . . . . . . . . . . 1 . 1 . . . . . . . 2 . . . . 1 . . find_fabricator 4 | . . . . . . . . . . . . 2 . . . . . . . 2 . . . . . . . drop_inventory 11 | . . . . . . . . 3 . . . 1 . . . 1 . 1 . 2 . 3 . . . . . find_recycling 2 | . . . . . . . . 1 . . . . . . . . . . . . . . . . 1 . . ignore_parts 4 | . . . . . . 1 . 1 . . . . . . . . . 1 . . . . . . 1 . . find_station 1 | . . . . . . . . . . . . . . . . . . 1 . . . . . . . . . purge_threat 7 | . . . . . . . . . . . . 2 . . . 2 . . . . . 2 1 . . . . find_terminals 2 | . . . . . . . . . . . . 1 . . . . . . . 1 . . . . . . . locate_traps 1 | . . . . . . . . . . . . . . . . . . . . . . 1 . . . . . reprogram_traps 5 | . . . . . . . . . . . . 2 . . . 1 . . . . . 1 1 . . . . block_reporting 1 | . . . . . . . . . . . . . . . . . . 1 . . . . . . . . . recall_investigation 1 | . . . . . . . . . . . . . . . . . . . . . . . 1 . . . . map_route 3 | . . . . . . . . . . . . 1 . . . . . . . 1 . . 1 . . . . mark_security 2 | . . . . . . . . . . . . 2 . . . . . . . . . . . . . . . find_garrison 5 | . . . . . . . . 1 . . . . . . . 1 . 1 . 1 . 1 . . . . . scatter_targeting 1 | . . . . . . . . . . . . 1 . . . . . . . . . . . . . . . amplify_resonance 1 | . . . . . . . . . . . . 1 . . . . . . . . . . . . . . . wipe_record 1 | . . . . . . 1 . . . . . . . . . . . . . . . . . . . . . reboot_system 20 | . . . . . . 1 . 1 . 1 2 7 1 . . . 1 . 2 1 . 2 1 . . . . overwrite_iff 18 | . . . . . . . . . . . 1 2 . . . . 1 2 3 1 . 5 3 . . . . streamctrl_low 1 | . . . . . . . . . . . . . . . . . . 1 . . . . . . . . . formatsys_high 48 | . . . . . . 2 2 3 . 2 4 6 1 . . 1 . 4 5 6 1 6 5 . . . . Relay Couplers Released 76 | . . . . . 4 . 7 . 9 . 14 1 . . . 2 9 2 12 2 14 . . . . . . Machine Destruction 76 | . . . . . 4 . 7 . 9 . 14 1 . . . 2 9 2 12 2 14 . . . . . . Attached 48 | . . . . . . 2 1 3 . 1 4 7 1 . . 2 3 3 5 5 4 4 3 . . . . Robots Rewired 10 | . . . . . . . . . . . . . 4 . . . . . 1 . 1 . 4 . . . . Allies Hacked 2 | . . . . . . . . . . . . . . . . . . . . 1 . 1 . . . . . Hacks Repelled . | . . . . . . . . . . . . . . . . . . . . . . . . . . . . Allies | -11 -10 -10 -9 -9 -9 -8 -8 -8 -8 -7 -7 -6 -6 -6 -6 -6 -6 -5 -5 -4 -4 -3 -3 -3 -2 -2 -1 -------- Run | Scr Mat Min Mat Sto Gar Mat Gar Mat Gar Fac Gar Fac Ext Cet Arc Hub Gar Fac Gar Fac Gar Res Arm Lab Res Qua Acc Total Allies 151 | . . . . . . 2 2 3 . 2 8 12 14 . . 2 5 8 12 13 10 22 16 . 13 7 . Largest Group 11 | . . . . . . 1 2 1 . 2 3 3 11 11 . 1 3 4 4 5 4 4 6 . 7 8 . Highest-Rated Group 451 | . . . . . . 18 32 18 . 24 61 94 451 451 . 32 53 156 147 196 166 181 318 . 99 113 . Highest-Rated Ally 156 | . . . . . . 18 16 18 . 12 29 32 156 148 . 32 29 49 49 58 56 64 60 . 15 15 . Total Orders 81 | . . . . . . . . . . . 1 2 . 1 . . . 20 7 26 5 13 6 . . . . STAY 30 | . . . . . . . . . . . 1 1 . 1 . . . 7 4 7 3 5 1 . . . . FOLLOW 16 | . . . . . . . . . . . . 1 . . . . . 4 3 3 2 3 . . . . . AID 3 | . . . . . . . . . . . . . . . . . . 3 . . . . . . . . . EXPLORE 30 | . . . . . . . . . . . . . . . . . . 6 . 15 . 5 4 . . . . RETURN 2 | . . . . . . . . . . . . . . . . . . . . 1 . . 1 . . . . Ally Attacks 872 | . . . . . . 16 25 39 . 15 45 97 117 50 . 13 18 41 40 78 23 127 60 . 60 8 . Total Damage 20755 | . . . . . . 393 337 615 . 157 577 1607 2852 1781 . 319 224 828 798 2508 836 3788 1956 . 1020 159 . Kills 144 | . . . . . . 5 6 7 . 1 8 10 24 9 . . 3 6 8 9 5 30 9 . 4 . . Allies Corrupted 4 | . . . . . . . . . . . . . . . . . . 1 . 1 . 2 . . . . . Allies Melted 2 | . . . . . . . . . . . . . . . . . . 1 1 . . . . . . . . Intel | -11 -10 -10 -9 -9 -9 -8 -8 -8 -8 -7 -7 -6 -6 -6 -6 -6 -6 -5 -5 -4 -4 -3 -3 -3 -2 -2 -1 ------- Run | Scr Mat Min Mat Sto Gar Mat Gar Mat Gar Fac Gar Fac Ext Cet Arc Hub Gar Fac Gar Fac Gar Res Arm Lab Res Qua Acc Robot Analysis Total 1 | . . . . . . 1 . . . . . . . . . . . . . . . . . . . . . Derelict Logs Recovered . | . . . . . . . . . . . . . . . . . . . . . . . . . . . . Drone Launches 33 | . . . . . . . . . . . . . . . . . . 3 . 22 . 5 3 . . . . Drone Recoveries 16 | . . . . . . . . . . . . . . . . . . 1 . 11 . 2 2 . . . . Exploration | -11 -10 -10 -9 -9 -9 -8 -8 -8 -8 -7 -7 -6 -6 -6 -6 -6 -6 -5 -5 -4 -4 -3 -3 -3 -2 -2 -1 ------------- Run | Scr Mat Min Mat Sto Gar Mat Gar Mat Gar Fac Gar Fac Ext Cet Arc Hub Gar Fac Gar Fac Gar Res Arm Lab Res Qua Acc Turns Passed 30926 | 54 317 934 791 871 593 1309 1190 1400 1358 988 1355 2734 1031 430 167 633 666 1254 1515 1395 1443 2130 2451 981 1800 350 786 Spaces Moved 18216 | 52 287 604 460 414 290 776 685 765 827 581 706 1414 605 176 80 310 349 834 1004 850 770 1079 1219 596 641 554 1288 Core 212 | 1 . . . . . . . . . . . . . . . . . . . . . . . . 112 99 . Treads 1695 | . . 73 36 13 62 92 9 1 12 . 155 148 163 4 . 4 13 . . . 168 593 117 . 32 . . Legs 542 | . . . . . . . . 62 . . . 357 . . . . . . . . . . . . 123 . . Wheels 14023 | 51 287 531 424 401 228 684 676 702 815 581 551 909 442 172 80 306 336 834 1004 850 602 486 1102 596 373 . . Hover 1 | . . . . . . . . . . . . . . . . . . . . . . . . . 1 . . Flight 1743 | . . . . . . . . . . . . . . . . . . . . . . . . . . 455 1288 Fastest Speed 34 | 50 80 100 120 140 140 110 110 115 115 150 150 130 130 130 140 130 130 110 110 110 120 120 120 120 50 37 34 Average Speed 127 | 79 91 126 131 144 158 128 141 135 133 150 162 160 154 140 140 132 138 119 119 119 145 142 133 133 147 43 34 Slowest Speed 1700 | 80 100 200 220 220 220 240 172 220 220 160 180 220 220 220 140 220 220 130 120 120 180 180 180 160 1700 80 37 Overloaded Moves . | . . . . . . . . . . . . . . . . . . . . . . . . . . . . Propulsion Burnouts . | . . . . . . . . . . . . . . . . . . . . . . . . . . . . Robots Hopped 13 | . . . . . . . . . . . . . . . . . 2 . . . . . . . . . 11 Cave-ins Triggered . | . . . . . . . . . . . . . . . . . . . . . . . . . . . . Teleports 2 | . . . . . . . . . . . . . . . . . . . . . . . . . 1 1 . Exploration Rate (%) 51 | 4 49 72 46 50 55 72 65 50 72 16 71 31 84 50 75 34 51 37 67 23 69 35 66 99 24 43 26 Regions Visited 27 Branch Regions 9 Pre-discovered Areas . | . . . . . . . . . . . . . . . . . . . . . . . . . . . . Known Exits Taken 18 | . 1 . 1 1 . 1 . 1 . 1 . 1 1 1 1 1 . 1 . 1 . 1 1 1 1 1 . Unknown Exits Taken 2 | 1 . 1 . . . . . . . . . . . . . . . . . . . . . . . . . Scrap Searched . | . . . . . . . . . . . . . . . . . . . . . . . . . . . . Spaces Dug 236 | . . . . 1 . 4 . 9 . 10 . 22 . . . 6 . 12 . 8 1 20 14 2 81 9 37 Terrain Destroyed 710 | . . 20 . 8 17 20 11 16 4 12 2 48 . . 6 14 1 12 4 49 47 77 21 2 224 58 37 Melee 155 | . . . . . . 4 . 9 . 10 . 21 . . . 6 . 11 . 5 1 16 1 1 24 9 37 Projectile 78 | . . . . 1 . . . . . . . 3 . . 6 6 1 1 . 18 1 7 15 1 18 . . AOE 477 | . . 20 . 7 17 16 11 7 4 2 2 24 . . . 2 . . 4 26 45 54 5 . 182 49 . Terrain Rammed . | . . . . . . . . . . . . . . . . . . . . . . . . . . . . Walls Destroyed . | . . . . . . . . . . . . . . . . . . . . . . . . . . . . Machines Disabled . | . . . . . . . . . . . . . . . . . . . . . . . . . . . . Actions | -11 -10 -10 -9 -9 -9 -8 -8 -8 -8 -7 -7 -6 -6 -6 -6 -6 -6 -5 -5 -4 -4 -3 -3 -3 -2 -2 -1 --------- Run | Scr Mat Min Mat Sto Gar Mat Gar Mat Gar Fac Gar Fac Ext Cet Arc Hub Gar Fac Gar Fac Gar Res Arm Lab Res Qua Acc Total 23509 | 61 326 703 600 545 380 997 819 1012 1026 668 843 1743 690 318 107 452 463 1032 1246 1108 1002 1501 1825 784 1131 624 1503 Wait 1714 | . 24 17 70 27 10 87 40 82 74 26 20 114 47 97 14 42 24 72 33 93 54 92 279 123 36 2 115 Move 18169 | 51 286 603 459 414 289 776 684 765 826 581 705 1413 604 175 79 310 344 834 1003 849 769 1078 1218 595 640 553 1266 Hop 12 | . . . . . . . . . . . . . . . . . 2 . . . . . . . . . 10 Pick Up 398 | 4 6 13 16 6 9 17 10 17 22 9 15 22 5 5 . 9 5 17 13 16 21 50 24 17 36 5 9 Fast Attach 139 | 6 1 . 4 1 . 3 . 7 3 3 . 4 3 2 . 5 1 4 1 1 4 12 7 5 28 15 19 Attach 228 | . . 3 2 6 4 6 11 5 7 2 2 11 1 1 . 9 . 6 5 11 14 27 13 7 64 6 5 Detach 87 | . . 1 1 1 . 3 2 1 3 . . 4 . 1 . 2 1 . 3 2 8 10 5 5 23 5 6 Swap 611 | . 1 12 7 13 13 32 10 42 18 14 13 47 8 10 . 31 10 39 26 42 17 54 102 3 47 . . Drop 345 | . 1 14 14 2 2 16 2 20 20 11 15 16 7 6 . 2 5 18 9 6 15 46 21 23 25 11 18 Fire 1045 | . 7 40 26 72 23 39 27 34 24 9 37 63 11 17 14 31 31 24 50 67 49 72 152 2 120 4 . Melee 488 | . . . . . 1 17 18 38 6 13 15 45 2 4 . 11 6 18 14 18 6 59 3 4 112 23 55 Ram . | . . . . . . . . . . . . . . . . . . . . . . . . . . . . Kick . | . . . . . . . . . . . . . . . . . . . . . . . . . . . . Crush 13 | . . . 1 3 . . 5 . . . 3 . . . . . . . . . . 1 . . . . . Escape Stasis 242 | . . . . . 29 . 9 . 23 . 18 4 2 . . . 34 . 89 . 34 . . . . . . Rewire 15 | . . . . . . 1 1 1 . . . . . . . . . . . . 11 . 1 . . . . Trap . | . . . . . . . . . . . . . . . . . . . . . . . . . . . . Miscellaneous 3 | . . . . . . . . . . . . . . . . . . . . 3 . . . . . . . Route ------- -11/Scrapyard -10/Materials (discovered 2 exits: *Min x2) -10/Mines (discovered 3 exits: *Mat x2 / [*Exi]) -9/Materials (discovered 3 exits: *Min / *Sto x2) -9/Storage -9/Garrison (discovered 2 exits: *Mat x2) -8/Materials (discovered 4 exits: *Fac x3 / Gar) -8/Garrison (discovered 3 exits: *Mat x3) -8/Materials (discovered 3 exits: *Fac x2 / Gar) -8/Garrison (discovered 3 exits: *Fac x3) -7/Factory -7/Garrison (discovered 3 exits: *Fac x3) -6/Factory (discovered 4 exits: *Low x2 / *Ext x2) -6/Extension (discovered 2 exits: *Fac / *Cet) -6/Cetus -6/Archives (discovered 2 exits: *Hub x2) -6/Hub_04(d) (discovered 2 exits: *Fac / Gar) -6/Garrison (discovered 2 exits: *Fac x2) -5/Factory -5/Garrison (discovered 2 exits: *Fac x2) -4/Factory (discovered 4 exits: *Res / Upp x2 / Gar) -4/Garrison (discovered 2 exits: *Res x2) -3/Research (discovered 3 exits: *Arm / Tes x2) -3/Armory (discovered 2 exits: Res / *Lab) -3/Lab -2/Research -2/Quarantine -1/Access To Fleet Rendezvous History --------- Turn | Location | Event 9 | -11/Scrapyard | Discovered new exit (range 16) 55 | -11/Scrapyard | Entered Materials 70 | -10/Materials | Identified exit to Mines 288 | -10/Materials | Central database locked down 311 | -10/Materials | Build established: Mutant 372 | -10/Materials | Entered Mines 549 | -10/Mines | Assembled infested the area 723 | -10/Mines | Discovered new exit (range 5) 941 | -10/Mines | Discovered new exit (range 7) 1006 | -10/Mines | Met a Derelict shopkeep closing up shop 1106 | -10/Mines | Found a damaged Exp. Sensor Array with a note attached 1111 | -10/Mines | Found Prototype Device 1275 | -10/Mines | Deemed a non-threat by the Exiles lab entrance 1276 | -10/Mines | Discovered new exit (range 5) 1306 | -10/Mines | Entered Materials 1306 | -9/Materials | Evolved 2 slots: Utility x2 1311 | -9/Materials | Discovered new exit (range 12) 1412 | -9/Materials | Identified exit to Mines 1412 | -9/Materials | Identified exit to Storage 1711 | -9/Materials | Identified Exp. Sensor Array 2097 | -9/Materials | Entered Storage 2631 | -9/Storage | Garrison activated, responded to threat 2820 | -9/Storage | Garrison activated, responded to threat 2892 | -9/Storage | Destroyed 7 combat bots 2947 | -9/Storage | Garrison activated, responded to threat 2968 | -9/Storage | Identified exit to Garrison 2968 | -9/Storage | Entered Garrison 3000 | -9/Garrison | Triggered checkpoint 3072 | -9/Garrison | Triggered checkpoint 3091 | -9/Garrison | Core integrity fell below 50% 3113 | -9/Garrison | Lost 3 parts (1p1u1w) 3192 | -9/Garrison | Discovered new exit (range 14) 3300 | -9/Garrison | Triggered checkpoint 3332 | -9/Garrison | Discovered new exit (range 11) 3366 | -9/Garrison | Installed Relay Interface Framework 3422 | -9/Garrison | Triggered checkpoint 3496 | -9/Garrison | Garrison Relay disabled 3561 | -9/Garrison | Entered Materials 3561 | -8/Materials | Evolved 2 slots: Propulsion x1, Utility x1 3979 | -8/Materials | Build established: Bothacker-Mutant 4048 | -8/Materials | Discovered new exit (range 9) 4146 | -8/Materials | Central database locked down 4212 | -8/Materials | Discovered new exit (range 16) 4643 | -8/Materials | Discovered new exit (range 8) 4690 | -8/Materials | Repaired Cooling System 4812 | -8/Materials | Build established: Hauler-Mutant 4870 | -8/Materials | Identified exit to Garrison 4870 | -8/Materials | Entered Garrison 4922 | -8/Garrison | Triggered checkpoint 5040 | -8/Garrison | Lost 8 parts (1p1n1u5w) 5106 | -8/Garrison | Discovered new exit (range 8) 5190 | -8/Garrison | Triggered checkpoint 5239 | -8/Garrison | Discovered new exit (range 13) 5241 | -8/Garrison | Build established: Mutant 5370 | -8/Garrison | Triggered checkpoint 5452 | -8/Garrison | Triggered checkpoint 5525 | -8/Garrison | Discovered new exit (range 10) 5545 | -8/Garrison | Expanded RIF knowledge: Zone Cloak 5588 | -8/Garrison | Triggered checkpoint 5678 | -8/Garrison | Garrison Relay disabled 5832 | -8/Garrison | Triggered checkpoint 5858 | -8/Garrison | Garrison Relay disabled 5987 | -8/Garrison | Build established: Hauler-Mutant 6060 | -8/Garrison | Entered Materials 6162 | -8/Materials | Core integrity fell below 50% 6183 | -8/Materials | Lost 4 parts (2n1u1w) 6395 | -8/Materials | Build established: Bothacker-Mutant 6949 | -8/Materials | Discovered new exit (range 4) 7402 | -8/Materials | Garrison activated, responded to threat 7447 | -8/Materials | Discovered new exit (range 16) 7460 | -8/Materials | Identified exit to Garrison 7460 | -8/Materials | Entered Garrison 7569 | -8/Garrison | Triggered checkpoint 7625 | -8/Garrison | Discovered new exit (range 8) 7725 | -8/Garrison | Triggered checkpoint 7776 | -8/Garrison | Discovered new exit (range 8) 7809 | -8/Garrison | Build established: Mutant 7826 | -8/Garrison | Triggered checkpoint 7886 | -8/Garrison | Core integrity fell below 20% 8014 | -8/Garrison | Lost 3 parts (1n1u1w) 8026 | -8/Garrison | Discovered new exit (range 14) 8256 | -8/Garrison | Expanded RIF knowledge: Signal Jamming 8565 | -8/Garrison | Garrison Relay disabled 8725 | -8/Garrison | Build established: Bothacker-Mutant 8727 | -8/Garrison | Garrison Relay disabled 8818 | -8/Garrison | Entered Factory 8818 | -7/Factory | Evolved 2 slots: Utility x2 9121 | -7/Factory | Build established: Bothacker-Assassin 9644 | -7/Factory | Fabricated Remote Datajack (x1) 9806 | -7/Factory | Identified exit to Garrison 9806 | -7/Factory | Entered Garrison 9814 | -7/Garrison | Expanded RIF knowledge: Autoassimilate 10023 | -7/Garrison | Build established: Bothacker-Mutant 10046 | -7/Garrison | Triggered checkpoint 10101 | -7/Garrison | Garrison Relay disabled 10160 | -7/Garrison | Triggered checkpoint 10253 | -7/Garrison | Garrison Relay disabled 10293 | -7/Garrison | Discovered new exit (range 15) 10314 | -7/Garrison | Identified exit to Factory 10395 | -7/Garrison | Build established: Botlord-Mutant 10412 | -7/Garrison | Triggered checkpoint 10494 | -7/Garrison | Discovered exit to Factory (range 9) 10515 | -7/Garrison | Triggered checkpoint 10566 | -7/Garrison | Garrison Relay disabled 10652 | -7/Garrison | Triggered checkpoint 10769 | -7/Garrison | Discovered exit to Factory (range 13) 10816 | -7/Garrison | Triggered checkpoint 10848 | -7/Garrison | Garrison Relay disabled 11161 | -7/Garrison | Entered Factory 11161 | -6/Factory | Accompanied by 1 ally 11161 | -6/Factory | Evolved 2 slots: Utility x2 11546 | -6/Factory | Discovered new exit (range 67) 12555 | -6/Factory | Allied Derelicts emerged from ambush trap array 12689 | -6/Factory | Repaired Exp. Sensor Array? 12842 | -6/Factory | Repaired Remote Datajack? 12981 | -6/Factory | Repaired Reflective Plating? 13211 | -6/Factory | Identified exit to Lower Caves 13211 | -6/Factory | Identified exit to Extension 13274 | -6/Factory | Fabricated Arm. Huge Wheel? 13768 | -6/Factory | Build established: Bothacker-Mutant 13895 | -6/Factory | Entered Extension 13981 | -6/Extension | Rescued A7 14041 | -6/Extension | Rescued a captive Derelict 14042 | -6/Extension | Rescued a captive Derelict 14125 | -6/Extension | Rescued a captive Derelict 14177 | -6/Extension | Rescued a captive Derelict 14206 | -6/Extension | Rescued a captive Derelict 14535 | -6/Extension | Spotted B-75 Beast 14541 | -6/Extension | Destroyed B-75 Beast 14555 | -6/Extension | Spotted B-75 Beast 14561 | -6/Extension | Allies destroyed B-75 Beast 14605 | -6/Extension | Energy Cycler disabled 14606 | -6/Extension | Rescued a captive Derelict 14606 | -6/Extension | Rescued a captive Derelict 14607 | -6/Extension | Rescued a captive Derelict 14609 | -6/Extension | Rescued a captive Derelict 14610 | -6/Extension | Rescued a captive Derelict 14613 | -6/Extension | Rescued a captive Derelict 14892 | -6/Extension | Discovered new exit (range 10) 14894 | -6/Extension | Discovered new exit (range 6) 14901 | -6/Extension | Identified exit to Cetus 14926 | -6/Extension | Entered Cetus 14926 | -6/Cetus | Accompanied by 11 allies (A7) 14931 | -6/Cetus | Acquired a Cetus Manufacturing Module code from A7 14951 | -6/Cetus | Spotted Cetus Guard 14951 | -6/Cetus | Spotted Cetus Guard 14953 | -6/Cetus | Spotted Cetus Guard 14953 | -6/Cetus | Spotted Cetus Guard 14954 | -6/Cetus | Allies destroyed Cetus Guard 14973 | -6/Cetus | Allies destroyed Cetus Guard 14979 | -6/Cetus | Allies destroyed Cetus Guard 14981 | -6/Cetus | Allies destroyed Cetus Guard 15028 | -6/Cetus | Cetus Manufacturing Module disabled 15074 | -6/Cetus | Failed to start Cetus Manufacturing Module 15126 | -6/Cetus | Found a strange terminal 15149 | -6/Cetus | Discovered new exit (range 16) 15169 | -6/Cetus | Identified exit to Archives 15336 | -6/Cetus | Extracted ID and sensor layout for unrecognized location from A7's data core 15356 | -6/Cetus | Entered Archives 15442 | -6/Archives | Discovered new exit (range 16) 15485 | -6/Archives | Discovered new exit (range 16) 15506 | -6/Archives | Identified exit to Hub_04(d) 15523 | -6/Archives | Entered Hub_04(d) 15685 | -6/Hub_04(d) | Lost 3 parts (1u2w) 15880 | -6/Hub_04(d) | Discovered new exit (range 9) 16156 | -6/Hub_04(d) | Identified exit to Garrison 16156 | -6/Hub_04(d) | Entered Garrison 16166 | -6/Garrison | Expanded RIF knowledge: Autoassimilate 16254 | -6/Garrison | Triggered checkpoint 16314 | -6/Garrison | Garrison Relay disabled 16388 | -6/Garrison | Triggered checkpoint 16396 | -6/Garrison | Triggered checkpoint 16396 | -6/Garrison | Triggered checkpoint 16520 | -6/Garrison | Discovered new exit (range 11) 16532 | -6/Garrison | Identified exit to Factory 16562 | -6/Garrison | Triggered checkpoint 16590 | -6/Garrison | Garrison Relay disabled 16730 | -6/Garrison | Triggered checkpoint 16763 | -6/Garrison | Garrison Relay disabled 16797 | -6/Garrison | Discovered exit to Factory (range 14) 16822 | -6/Garrison | Entered Factory 16822 | -5/Factory | Accompanied by 1 ally 16822 | -5/Factory | Evolved 2 slots: Propulsion x1, Utility x1 17277 | -5/Factory | Build established: Botlord-Mutant 17663 | -5/Factory | Fabricated Arm. Huge Wheel? 17851 | -5/Factory | Build established: Botlord-Assassin 18074 | -5/Factory | Identified exit to Garrison 18076 | -5/Factory | Entered Garrison 18076 | -5/Garrison | Accompanied by 3 allies 18203 | -5/Garrison | Triggered checkpoint 18226 | -5/Garrison | Build established: Botlord-Mutant 18263 | -5/Garrison | Garrison Relay disabled 18405 | -5/Garrison | Triggered checkpoint 18694 | -5/Garrison | Discovered new exit (range 8) 18701 | -5/Garrison | Identified exit to Factory 18711 | -5/Garrison | Expanded RIF knowledge: Autooverride 18756 | -5/Garrison | Triggered checkpoint 18816 | -5/Garrison | Garrison Relay disabled 18941 | -5/Garrison | Discovered exit to Factory (range 10) 18954 | -5/Garrison | Triggered checkpoint 19020 | -5/Garrison | Garrison Relay disabled 19266 | -5/Garrison | Triggered checkpoint 19591 | -5/Garrison | Entered Factory 19591 | -4/Factory | Accompanied by 4 allies 19591 | -4/Factory | Evolved 2 slots: Utility x2 19794 | -4/Factory | Repaired Disruptor Cannon? 20199 | -4/Factory | Discovered new exit (range 14) 20212 | -4/Factory | Identified exit to Research 20216 | -4/Factory | Fabricated Imp. Hacking Suite (x1) 20325 | -4/Factory | Spotted B-86 Titan 20350 | -4/Factory | Allies destroyed B-86 Titan 20943 | -4/Factory | Identified exit to Upper Caves 20984 | -4/Factory | Identified exit to Garrison 20986 | -4/Factory | Entered Garrison 20986 | -4/Garrison | Accompanied by 2 allies 21040 | -4/Garrison | Triggered checkpoint 21124 | -4/Garrison | Spotted B-86 Titan 21132 | -4/Garrison | Triggered checkpoint 21146 | -4/Garrison | Triggered checkpoint 21232 | -4/Garrison | Destroyed B-86 Titan 21258 | -4/Garrison | Lost 7 parts (1n3u3w) 21293 | -4/Garrison | Triggered checkpoint 21502 | -4/Garrison | Build established: Hauler-Mutant 21534 | -4/Garrison | Triggered checkpoint 21557 | -4/Garrison | Discovered exit to Research (range 15) 21584 | -4/Garrison | Expanded RIF knowledge: Patrol Navigation 21672 | -4/Garrison | Triggered checkpoint 21703 | -4/Garrison | Garrison Relay disabled 21818 | -4/Garrison | Triggered checkpoint 21839 | -4/Garrison | Garrison Relay disabled 21994 | -4/Garrison | Triggered checkpoint 22027 | -4/Garrison | Garrison Relay disabled 22075 | -4/Garrison | Discovered exit to Research (range 15) 22429 | -4/Garrison | Entered Research 22429 | -3/Research | Accompanied by 2 allies 22429 | -3/Research | Evolved 2 slots: Utility x2 22803 | -3/Research | Lost 5 parts (3u2w) 22937 | -3/Research | Build established: Botlord-Mutant 23004 | -3/Research | Spotted B-86 Titan 23104 | -3/Research | Found Faulty EM Dispersion Field 23581 | -3/Research | Found Prototype Device 23812 | -3/Research | Identified exit to Armory 23812 | -3/Research | Identified exit to Testing 24179 | -3/Research | First assault squad dispatched 24193 | -3/Research | Found Unknown Launcher 24193 | -3/Research | Identified Gamma Bomb Array 24245 | -3/Research | Found Fusion Bomb Launcher 24255 | -3/Research | Spotted B-86 Titan 24347 | -3/Research | Found Unknown Protection 24391 | -3/Research | Identified Adv. Powered Armor 24474 | -3/Research | Build established: Botlord-Assassin 24527 | -3/Research | Spotted B-86 Titan 24540 | -3/Research | Identified Exp. Transmission Jammer 24546 | -3/Research | Found Centrium Greatsword 24559 | -3/Research | Entered Armory 24559 | -3/Armory | Accompanied by 1 ally 24837 | -3/Armory | Repaired Energy Mantle? 25023 | -3/Armory | Build established: Botlord-Skirmisher 25148 | -3/Armory | Fabricated Adv. Terrain Scanner? 25390 | -3/Armory | P-80 Master assimilated allied Archangel 8a 25444 | -3/Armory | Spotted B-86 Titan 25872 | -3/Armory | Build established: Botlord-Mutant 26329 | -3/Armory | System corruption reached 10% 26482 | -3/Armory | Found Enh. Force Lance 26559 | -3/Armory | Build established: Botlord-Skirmisher 26593 | -3/Armory | Core integrity fell below 50% 26815 | -3/Armory | Lost 3 parts (1n1u1w) 26931 | -3/Armory | Discovered new exit (range 15) 27001 | -3/Armory | Discovered new exit (range 14) 27008 | -3/Armory | Identified exit to Lab 27010 | -3/Armory | Entered Lab 27010 | -3/Lab | Discovered new exit (range 9) 27021 | -3/Lab | Identified exit to Research 27027 | -3/Lab | Hidden lab's door opened automatically 27027 | -3/Lab | Sensor layout match revealed 27028 | -3/Lab | Gained access to the hidden lab's interior 27247 | -3/Lab | Unable to decrypt terminal 27301 | -3/Lab | Found Alien Artifact 27309 | -3/Lab | Found Alien Artifact 27316 | -3/Lab | Found Alien Artifact 27322 | -3/Lab | Found Alien Artifact 27395 | -3/Lab | Found Prototype Hackware 27395 | -3/Lab | Identified Quantum Router 27399 | -3/Lab | Found Prototype Device 27399 | -3/Lab | Identified AEGIS Remote Shield 27409 | -3/Lab | Found Prototype Energy Cannon 27409 | -3/Lab | Identified Warp Cannon 27414 | -3/Lab | Found Warp Cannon 27471 | -3/Lab | Build established: Hacker-Mutant 27495 | -3/Lab | Found Prototype Special Weapon 27522 | -3/Lab | Identified Gui. Remote Datajack 27776 | -3/Lab | Unable to decrypt terminal 27790 | -3/Lab | Build established: Bothacker-Mutant 27991 | -3/Lab | Entered Research 27991 | -2/Research | Evolved 2 slots: Power x1, Weapon x1 28033 | -2/Research | Identified Transdimensional Reconstructor 28033 | -2/Research | Identified Core Regenerator 28033 | -2/Research | Identified Integrated Reactor 28033 | -2/Research | Installed Integrated Reactor, increased core energy generation (+10) 28443 | -2/Research | Destroyed 8 combat bots 28464 | -2/Research | Lost 7 parts (1n2u4w) 28605 | -2/Research | Spotted B-90 Cyclops 28705 | -2/Research | Found Prototype Slashing Weapon 28710 | -2/Research | Identified Nanosword 28838 | -2/Research | Repaired Broken Centrium Greatsword 28877 | -2/Research | Warped through subspace 28990 | -2/Research | Identified Core Reset Matrix 29054 | -2/Research | System corruption reached 10% 29063 | -2/Research | Lost 3 parts (2n1u) 29186 | -2/Research | Lost 11 parts (1p2n4u4w) 29188 | -2/Research | Destroyed 10 combat bots 29221 | -2/Research | Core integrity fell below 50% 29282 | -2/Research | Lost 10 parts (3p5u2w) 29555 | -2/Research | Lost 6 parts (1p2n1u2w) 29574 | -2/Research | Used Core Regenerator, restored core integrity (+362) 29633 | -2/Research | Lost 7 parts (1p2n4u) 29721 | -2/Research | Used Core Reset Matrix 29724 | -2/Research | Core integrity fell below 20% 29725 | -2/Research | Emitted hypermatrix ping 29730 | -2/Research | Assembled emerged from beneath the floor 29734 | -2/Research | Destroyed 7 combat bots 29750 | -2/Research | Spotted B-90 Cyclops 29758 | -2/Research | Lost 19 parts (3p5n7u4w) 29771 | -2/Research | Assembled emerged from beneath the floor 29779 | -2/Research | Discovered new exit (range 17) 29789 | -2/Research | Identified exit to Quarantine 29790 | -2/Research | Found Prototype Launcher 29790 | -2/Research | Identified Ragnarok Missile Launcher 29791 | -2/Research | Entered Quarantine 29791 | -2/Quarantine | Accompanied by 1 ally 29792 | -2/Quarantine | Detected hypermatrix surge 29792 | -2/Quarantine | Emitted hypermatrix ping 29792 | -2/Quarantine | Sensed 16 artifacts in vicinity 29797 | -2/Quarantine | Assembled emerged from beneath the floor 29806 | -2/Quarantine | Found Phase Armor 29882 | -2/Quarantine | Found Subatomic Replicator 29940 | -2/Quarantine | Build established: Mutant 30009 | -2/Quarantine | Found Prototype Device 30022 | -2/Quarantine | Identified Exp. Transmission Jammer 30057 | -2/Quarantine | Identified exit to Access 30066 | -2/Quarantine | Found Sigix Broadsword 30098 | -2/Quarantine | Found Hpw. Transdimensional Reconstructor 30100 | -2/Quarantine | Used Subatomic Replicator to replicate Field Propulsion Array 30108 | -2/Quarantine | Warped through subspace 30141 | -2/Quarantine | Spotted Alpha 7 30141 | -2/Quarantine | Entered Access 30141 | -1/Access | Evolved 2 slots: Propulsion x2 30356 | -1/Access | Found Unknown Device 30356 | -1/Access | Identified Quantum Capacitor 30744 | -1/Access | Build established: Alien-Ninja 30891 | -1/Access | First assault squad dispatched 30925 | -1/Access | Discovered new exit (range 7) 30926 | -1/Access | Identified exit to Surface 30927 | *** | Heading to fleet! Last Messages --------------- >>Seal Access door sealed. 30738_ W-44 Eye sends out distress signal. 30740_ U-05 Engineer builds a Wall. 30748_ ALERT: Hostiles spotted, dispatching reinforcements to Terminal A014. 30765_ U-05 Engineer builds a Wall. 30862_ Destroyed Antigrav System. 30876_ W-44 Eye sends out distress signal. 30888_ U-05 Engineer builds a Wall. 30891_ ALERT: Significant disruption in Zone 5K, assault forces dispatched. 30894_ C-30 ARC bursts open, deploying its payload. 30894_ G-73 Enforcer unfolds itself. 30897_ W-44 Eye sends out distress signal. 30906_ Slug penetrates Wall. 30924_ Connecting with Terminal... >>Open Sealed Barrier opened. 30925_ The Access Shell folds into the floor. 30925_ EXIT=FOUND 30926_ EXIT=IDENTIFIED: SURFACE Map ----- +----------------------------------------------------+ | ????????????????????????????????????????????# #?? | | ????????????????????????????????????????????# #?? | | ???????????????????????????????????????????## ##? | | ????????????????????# ######+############## # | | ????????????????????# """T""" # | | ????????????????????? """ """ + | | ??????????????????????????# #### # | | ??????????????????????????# #??###### | | ??????????????????????????# #????????# | | ??????????????????????????# #?????? | | ??????????????????????????# #???? ] | | ??????????????????????????# #?? " | | ??????????????????????????# # """ | | ??????????????????????????# + """ | | ??????????????????????????# # " | | ??????????????????????????############ #?? | | ?????????????????????????????????????# #???? | | ?????????????????????????????????????#k #??????### | | ?????????????????????????????????????#g #????????? | | ?????????????????????????????###?????# #????????? | | ????????????????????########## ####### #????????? | | ????????????????????" #????????? | | ??????????????BB????" #????????? | | ??????????????BB????" A#????????? | | ????????????????????" #????????? | | ????????????????????" "@ #????????? | | ????????????????????" "" #????????? | | ????????????????????" Ru#????????? | | ??????????????BB????" #????????? | | ????????????u?BB????" """ """ #????????? | | ????????????????????" """T""" #????????? | | ????????????????????########## ####### #????????? | | ?????????????????????????????###?????#gA#????????? | | ?????????????????????????????????????# u#????????? | | ??????????????????????????????????????A #????????? | | ?????????????????????????????????????? #????????? | | ?????????????????????????????????????? #????????? | | ?????????????????????????????????????? #????????? | | ?????????????????????????????????????? #????????? | | ?????????????????????????????????????? #????????? | | ?????????????????????????????????????? #????????? | | ?????????????????????????????????????? #????????? | | ?????????????????????????????????????? #????????? | | ?????????????????????????????????????? ?????????? | | ??????????????????????????????????????? ?????????? | | ?????????????????????????????????????????????????? | | ?????????????????????????????????????????????????? | | ?????????????????????????????????????????????????? | | ?????????????????????????????????????????????????? | | ?????????????????????????????????????????????????? | +----------------------------------------------------+ Best States ------------- Heat Dissipation 108 Energy Generation 55 Energy Capacity 1375 Matter Stores 300 Matter Capacity 300 Sight Range 22 Robot Scan Range 30 Terrain Scan Range 24 Terrain Scan Density 10 Cloak Strength 3 Additional Mass Support 9 Armor Coverage 1200 Resistance: TH 30 Resistance: EX 50 Resistance: EM 15 Core Shielding 20 Propulsion Shielding 33 Weapon Cycling 25 Melee Speed Boost 20 Phase Shifting 15 Evasion (%) 88 Targeting Accuracy 14 Melee Accuracy 8 Target Analysis 8 Armor Integrity Analysis 33 Recoil Reduction 4 Matter Filtering 50 Particle Charging 30 Offensive Hacking 12 Defensive Hacking 39 Relay Coupler Types 159 Relay Coupler Value 6 Item Schematics ----------------- None Robot Schematics ------------------ None Fabricated ------------ Remote Datajack | x1 | -7/Factory Arm. Huge Wheel | x2 | -6/Factory Arm. Huge Wheel | x2 | -5/Factory Imp. Hacking Suite | x1 | -4/Factory Adv. Terrain Scanner | x2 | -3/Armory Alien Tech Used ----------------- Integrated Reactor Transdimensional Reconstructor Core Regenerator Core Reset Matrix Phase Armor Sigix Broadsword Subatomic Replicator High-powered Transdimensional Reconstructor Achievements -------------- Short-term Sacrifices Challenges ------------ None Game ------ Seed BehemothRestorationBattery Manual? 0 Play Time 07:54:53 Cumulative 223.2 hours Start 2021.09.06 @ 18:11:25 End 2021.09.07 @ 02:22:57 Sessions 3 Manual Loads 0 Difficulty Rogue Special Mode None Game No. 61 Rogue 61 Adventurer 0 Explorer 0 Win Type 2 Total 11 Types 9/0/2/0/0/0/0/0/0 Lore% 85 Gallery% 87 Achievement% 69 Wizard Run 0 Options --------- ASCII 0 Keyboard 0 Movement Numpad Keybinds 0 Fullscreen 1 Font 14/SmallcapsGlow Map View 84x54 Tactical HUD 1 Map Filters NONE Filters NONE Steam 1 RUN: 08ca0b32-884d-441d-af46-33b9e5867209